[Event "Live Chess"]
[Site "Chess.com"]
[Date "2023.05.21"]
[Round "-"]
[White "alanmike75"]
[Black "worldchessleaguelive"]
[Result "1-0"]
[WhiteElo "1610"]
[BlackElo "1372"]
[TimeControl "300"]
[EndTime "20:01:09 PDT"]
[Termination "alanmike75 won on time"]

1. e4 {[%clk 0:04:53.6]} 1... d5 {[%clk 0:04:57.4]} 2. exd5 {[%clk 0:04:52.4]}
2... Qxd5 {[%clk 0:04:56.4]} 3. Nc3 {[%clk 0:04:51.3]} 3... Qd8 {[%clk
0:04:55.2]} 4. Nf3 {[%clk 0:04:50.3]} 4... Nf6 {[%clk 0:04:54.2]} 5. Bc4 {[%clk
0:04:47.7]} 5... e6 {[%clk 0:04:51.2]} 6. O-O {[%clk 0:04:45.6]} 6... Be7 {[%clk
0:04:50.4]} 7. d4 {[%clk 0:04:42.5]} 7... c6 {[%clk 0:04:48.6]} 8. Ne5 {[%clk
0:04:36.2]} 8... b5 {[%clk 0:04:46.9]} 9. Be2 {[%clk 0:04:32]} 9... h6 {[%clk
0:04:42.9]} 10. Bf3 {[%clk 0:04:27.3]} 10... Bb7 {[%clk 0:04:40.2]} 11. Ne4
{[%clk 0:04:23.7]} 11... Nfd7 {[%clk 0:04:35.3]} 12. Bf4 {[%clk 0:04:04.7]}
12... Nxe5 {[%clk 0:04:32.7]} 13. dxe5 {[%clk 0:04:00.4]} 13... O-O {[%clk
0:04:28.5]} 14. Qe2 {[%clk 0:03:58]} 14... Qc7 {[%clk 0:04:06.3]} 15. Rfd1
{[%clk 0:03:55.7]} 15... Rd8 {[%clk 0:03:59.7]} 16. Rxd8+ {[%clk 0:03:52.9]}
16... Bxd8 {[%clk 0:03:57.2]} 17. Nd6 {[%clk 0:03:50.8]} 17... Be7 {[%clk
0:03:49.3]} 18. Rd1 {[%clk 0:03:47.5]} 18... Nd7 {[%clk 0:03:39.4]} 19. c4
{[%clk 0:03:26.9]} 19... Bxd6 {[%clk 0:03:18]} 20. exd6 {[%clk 0:03:21.4]} 20...
Qb6 {[%clk 0:03:12.1]} 21. Be3 {[%clk 0:03:09.8]} 21... Qa6 {[%clk 0:02:55]} 22.
cxb5 {[%clk 0:02:57.7]} 22... cxb5 {[%clk 0:02:50.7]} 23. Bxb7 {[%clk
0:02:49.3]} 23... Qxb7 {[%clk 0:02:48.1]} 24. h3 {[%clk 0:02:41.1]} 24... Rd8
{[%clk 0:02:40.4]} 25. b4 {[%clk 0:02:30.4]} 25... Nb6 {[%clk 0:02:32.8]} 26.
Bc5 {[%clk 0:02:26.1]} 26... Nd5 {[%clk 0:02:27.9]} 27. a3 {[%clk 0:02:22.6]}
27... Nc3 {[%clk 0:02:26.4]} 28. Qd3 {[%clk 0:02:13.5]} 28... Nxd1 {[%clk
0:02:24.5]} 29. Qxd1 {[%clk 0:02:12.4]} 29... Qd5 {[%clk 0:02:23.4]} 30. Qxd5
{[%clk 0:02:09.1]} 30... exd5 {[%clk 0:02:21.3]} 31. Kf1 {[%clk 0:02:08]} 31...
f6 {[%clk 0:02:11.8]} 32. Ke2 {[%clk 0:02:05]} 32... Kf7 {[%clk 0:02:10.9]} 33.
Kd3 {[%clk 0:02:03.8]} 33... Ke6 {[%clk 0:02:09.9]} 34. Kd4 {[%clk 0:02:02.8]}
34... Rd7 {[%clk 0:01:58.7]} 35. f4 {[%clk 0:02:00.4]} 35... g5 {[%clk
0:01:52.3]} 36. f5+ {[%clk 0:01:54.1]} 36... Kf7 {[%clk 0:01:50.4]} 37. Kxd5
{[%clk 0:01:53]} 37... h5 {[%clk 0:01:42.1]} 38. g4 {[%clk 0:01:51.3]} 38...
hxg4 {[%clk 0:01:39.4]} 39. hxg4 {[%clk 0:01:50.1]} 39... a6 {[%clk 0:01:19]}
40. Kc6 {[%clk 0:01:47.9]} 40... Rd8 {[%clk 0:01:16.5]} 41. Kc7 {[%clk
0:01:39.2]} 41... Ke8 {[%clk 0:01:11.1]} 42. Bd4 {[%clk 0:01:29]} 42... Rd7+
{[%clk 0:01:08.7]} 43. Kc6 {[%clk 0:01:27.2]} 43... Rf7 {[%clk 0:00:59]} 44. Be3
{[%clk 0:00:59.5]} 44... Rd7 {[%clk 0:00:40.2]} 45. Bb6 {[%clk 0:00:55.4]} 45...
Rf7 {[%clk 0:00:27]} 46. Bd4 {[%clk 0:00:43]} 46... Kd8 {[%clk 0:00:25.6]} 47.
Bb6+ {[%clk 0:00:37]} 47... Kc8 {[%clk 0:00:24.7]} 48. Bc7 {[%clk 0:00:33]}
48... Rd7 {[%clk 0:00:21.1]} 49. Kb6 {[%clk 0:00:30.9]} 49... Rf7 {[%clk
0:00:18.8]} 50. Kxa6 {[%clk 0:00:29.2]} 50... Rxc7 {[%clk 0:00:17.8]} 51. dxc7
{[%clk 0:00:28.1]} 51... Kxc7 {[%clk 0:00:17.3]} 52. Kxb5 {[%clk 0:00:26.7]}
52... Kb7 {[%clk 0:00:10.5]} 53. a4 {[%clk 0:00:26.6]} 53... Ka7 {[%clk
0:00:09.5]} 54. a5 {[%clk 0:00:26.5]} 1-0

[Event "Live Chess"]
[Site "Chess.com"]
[Date "2023.05.21"]
[Round "-"]
[White "Long1968"]
[Black "Conradical12"]
[Result "0-1"]
[WhiteElo "1051"]
[BlackElo "1627"]
[TimeControl "300"]
[EndTime "20:01:12 PDT"]
[Termination "Conradical12 won by checkmate"]

1. e4 {[%clk 0:04:57.1]} 1... e5 {[%clk 0:04:59.5]} 2. f4 {[%clk 0:04:55]} 2...
Nc6 {[%clk 0:04:54]} 3. Bc4 {[%clk 0:04:50.2]} 3... Bc5 {[%clk 0:04:50.9]} 4.
Nf3 {[%clk 0:04:47.4]} 4... Nf6 {[%clk 0:04:45.7]} 5. Nc3 {[%clk 0:04:43.9]}
5... d6 {[%clk 0:04:44.1]} 6. d3 {[%clk 0:04:15.8]} 6... Ng4 {[%clk 0:04:40.9]}
7. Rf1 {[%clk 0:03:50.5]} 7... Nxh2 {[%clk 0:04:39]} 8. Nxh2 {[%clk 0:03:46]}
8... Qh4+ {[%clk 0:04:38.1]} 9. Ke2 {[%clk 0:03:36.7]} 9... Nd4+ {[%clk
0:04:32.2]} 10. Kd2 {[%clk 0:03:20.9]} 10... Qxh2 {[%clk 0:04:29.1]} 11. Bxf7+
{[%clk 0:02:36]} 11... Kxf7 {[%clk 0:04:24.8]} 12. fxe5+ {[%clk 0:02:32.9]}
12... Ke8 {[%clk 0:04:19.9]} 13. Rf2 {[%clk 0:02:08.4]} 13... Nb3+ {[%clk
0:04:14]} 14. axb3 {[%clk 0:02:03.3]} 14... Bxf2 {[%clk 0:04:13]} 15. Qf1 {[%clk
0:01:49.2]} 15... Qf4+ {[%clk 0:04:06.3]} 16. Ke2 {[%clk 0:01:41.8]} 16... Bg4#
{[%clk 0:04:04.8]} 0-1

[Event "Live Chess"]
[Site "Chess.com"]
[Date "2023.05.21"]
[Round "-"]
[White "KeithArkell"]
[Black "Pablo_dmp"]
[Result "1-0"]
[WhiteElo "2584"]
[BlackElo "1861"]
[TimeControl "300"]
[EndTime "20:01:31 PDT"]
[Termination "KeithArkell won by resignation"]

1. Nf3 {[%clk 0:04:54]} 1... Nf6 {[%clk 0:04:52.4]} 2. d4 {[%clk 0:04:52.1]}
2... d5 {[%clk 0:04:50.8]} 3. c4 {[%clk 0:04:51.1]} 3... e6 {[%clk 0:04:49.2]}
4. cxd5 {[%clk 0:04:50.3]} 4... exd5 {[%clk 0:04:48.1]} 5. Nc3 {[%clk
0:04:49.6]} 5... c6 {[%clk 0:04:43.8]} 6. Qc2 {[%clk 0:04:47.8]} 6... Be7 {[%clk
0:04:39.6]} 7. Bg5 {[%clk 0:04:46.9]} 7... Bg4 {[%clk 0:04:37]} 8. Ne5 {[%clk
0:04:45.4]} 8... Bh5 {[%clk 0:04:34.2]} 9. e3 {[%clk 0:04:44.8]} 9... Nbd7
{[%clk 0:04:32.5]} 10. Nxd7 {[%clk 0:04:41.8]} 10... Qxd7 {[%clk 0:04:32.4]} 11.
Be2 {[%clk 0:04:39.2]} 11... Bg6 {[%clk 0:04:29.8]} 12. Bd3 {[%clk 0:04:38.3]}
12... Bxd3 {[%clk 0:04:13.7]} 13. Qxd3 {[%clk 0:04:36.9]} 13... Qg4 {[%clk
0:04:09.8]} 14. Bxf6 {[%clk 0:04:31.7]} 14... Bxf6 {[%clk 0:04:05.3]} 15. O-O
{[%clk 0:04:30.3]} 15... O-O {[%clk 0:03:53.3]} 16. b4 {[%clk 0:04:29.3]} 16...
Rfe8 {[%clk 0:03:43.7]} 17. b5 {[%clk 0:04:27.5]} 17... Rac8 {[%clk 0:03:28.1]}
18. bxc6 {[%clk 0:04:25.7]} 18... Rxc6 {[%clk 0:03:24]} 19. Nxd5 {[%clk
0:04:24]} 19... Qe6 {[%clk 0:03:18.3]} 20. Nxf6+ {[%clk 0:04:21.2]} 20... Qxf6
{[%clk 0:03:18.2]} 21. Rab1 {[%clk 0:04:18]} 21... b6 {[%clk 0:03:15.3]} 22. g3
{[%clk 0:04:14.3]} 22... Rec8 {[%clk 0:03:12.9]} 23. d5 {[%clk 0:04:11.6]} 23...
Rc5 {[%clk 0:03:07.4]} 24. d6 {[%clk 0:04:10.1]} 24... Rd8 {[%clk 0:03:05.7]}
25. Rfd1 {[%clk 0:04:08.7]} 25... Rc6 {[%clk 0:03:01.7]} 26. d7 {[%clk 0:04:08]}
26... Rc7 {[%clk 0:03:00.6]} 27. Rbc1 {[%clk 0:04:05.7]} 27... Rxc1 {[%clk
0:02:55.9]} 28. Rxc1 {[%clk 0:04:04.4]} 28... Qe7 {[%clk 0:02:51.4]} 29. Rc8
{[%clk 0:04:00]} 29... Kf8 {[%clk 0:02:48.6]} 30. Rxd8+ {[%clk 0:03:58.3]} 30...
Qxd8 {[%clk 0:02:48.5]} 31. Qd6+ {[%clk 0:03:57.4]} 31... Kg8 {[%clk 0:02:43.2]}
32. a4 {[%clk 0:03:56.1]} 32... g6 {[%clk 0:02:41.1]} 33. h4 {[%clk 0:03:53.4]}
33... f6 {[%clk 0:02:26.4]} 34. Qe6+ {[%clk 0:03:49.7]} 34... Kf8 {[%clk
0:02:21.9]} 35. e4 {[%clk 0:03:49.1]} 35... Qe7 {[%clk 0:02:18.2]} 36. Qd5
{[%clk 0:03:47.9]} 36... Qd8 {[%clk 0:02:16.1]} 37. Qd6+ {[%clk 0:03:47.2]}
37... Kf7 {[%clk 0:02:13.7]} 38. Kg2 {[%clk 0:03:46.7]} 38... h5 {[%clk
0:02:06.1]} 39. f4 {[%clk 0:03:43.4]} 39... Kg7 {[%clk 0:02:00.4]} 40. e5 {[%clk
0:03:41.5]} 40... fxe5 {[%clk 0:01:58]} 41. Qxe5+ {[%clk 0:03:35.7]} 41... Kf7
{[%clk 0:01:55.8]} 42. Qd6 {[%clk 0:03:30.8]} 42... Kg7 {[%clk 0:01:46.2]} 43.
Kf2 {[%clk 0:03:27.9]} 43... Kf7 {[%clk 0:01:45]} 44. Kf3 {[%clk 0:03:23.1]}
44... a6 {[%clk 0:01:42.4]} 45. Ke4 {[%clk 0:03:16.2]} 45... Qe7+ {[%clk
0:01:38.5]} 46. Kd5 {[%clk 0:03:15.4]} 46... Qd8 {[%clk 0:01:36.2]} 47. Kc6
{[%clk 0:03:14.4]} 47... b5 {[%clk 0:01:21.9]} 48. axb5 {[%clk 0:03:12.9]} 48...
axb5 {[%clk 0:01:21.8]} 49. Kxb5 {[%clk 0:03:10.9]} 49... Kg7 {[%clk 0:01:18.3]}
50. Qe5+ {[%clk 0:03:04.6]} 50... Kf7 {[%clk 0:01:16.6]} 51. Qe8+ {[%clk
0:02:49.5]} 51... Qxe8 {[%clk 0:01:14.4]} 52. dxe8=Q+ {[%clk 0:02:48.6]} 52...
Kxe8 {[%clk 0:01:14.3]} 53. Kc6 {[%clk 0:02:47.5]} 53... Kf7 {[%clk 0:00:49.3]}
54. Kd5 {[%clk 0:02:44]} 54... Kf6 {[%clk 0:00:49.2]} 55. Kd4 {[%clk 0:02:40.9]}
55... Kf5 {[%clk 0:00:47.6]} 56. Ke3 {[%clk 0:02:40.2]} 56... Kg4 {[%clk
0:00:46.3]} 57. Kf2 {[%clk 0:02:39.6]} 57... Kf5 {[%clk 0:00:43.1]} 58. Kf3
{[%clk 0:02:38.6]} 58... Kf6 {[%clk 0:00:41.8]} 59. g4 {[%clk 0:02:34.9]} 59...
hxg4+ {[%clk 0:00:39.7]} 60. Kxg4 {[%clk 0:02:34.1]} 60... Kg7 {[%clk
0:00:38.1]} 61. Kg5 {[%clk 0:02:32.6]} 61... Kf7 {[%clk 0:00:37.2]} 62. Kh6
{[%clk 0:02:31.5]} 62... Kf6 {[%clk 0:00:35.5]} 63. Kh7 {[%clk 0:02:30.9]} 63...
Kf7 {[%clk 0:00:33]} 64. Kh8 {[%clk 0:02:22.6]} 64... Kf6 {[%clk 0:00:30.3]} 65.
Kg8 {[%clk 0:02:21]} 65... Kf5 {[%clk 0:00:23.4]} 66. Kg7 {[%clk 0:02:20.2]}
66... Kxf4 {[%clk 0:00:19.8]} 67. Kxg6 {[%clk 0:02:19.6]} 67... Kg4 {[%clk
0:00:15.3]} 68. h5 {[%clk 0:02:18.8]} 1-0

[Event "Live Chess"]
[Site "Chess.com"]
[Date "2023.05.21"]
[Round "-"]
[White "LiamBellwood"]
[Black "ramses-IIG"]
[Result "1-0"]
[WhiteElo "2009"]
[BlackElo "870"]
[TimeControl "300"]
[EndTime "20:02:11 PDT"]
[Termination "LiamBellwood won by resignation"]

1. d4 {[%clk 0:04:58.3]} 1... d5 {[%clk 0:04:59.9]} 2. Nc3 {[%clk 0:04:57.7]}
2... Nc6 {[%clk 0:04:57.3]} 3. Bf4 {[%clk 0:04:57.4]} 3... e6 {[%clk 0:04:55.3]}
4. e4 {[%clk 0:04:54.3]} 4... dxe4 {[%clk 0:04:52.8]} 5. Nxe4 {[%clk 0:04:53.6]}
5... f6 {[%clk 0:04:49.6]} 6. c3 {[%clk 0:04:50.3]} 6... e5 {[%clk 0:04:48.5]}
7. dxe5 {[%clk 0:04:46.2]} 7... fxe5 {[%clk 0:04:48.4]} 8. Qxd8+ {[%clk
0:04:44.6]} 8... Nxd8 {[%clk 0:04:44.2]} 9. Bxe5 {[%clk 0:04:43.2]} 9... Ne7
{[%clk 0:04:37.6]} 10. O-O-O {[%clk 0:04:33.7]} 10... Nf5 {[%clk 0:04:33.4]} 11.
Bxc7 {[%clk 0:04:31.7]} 11... Nc6 {[%clk 0:04:31.1]} 12. Nd6+ {[%clk 0:04:30.4]}
12... Kd7 {[%clk 0:04:29.4]} 13. Nxf5+ {[%clk 0:04:26.5]} 13... Kxc7 {[%clk
0:04:28]} 14. Nd4 {[%clk 0:04:25.9]} 14... Nxd4 {[%clk 0:04:26.4]} 15. Rxd4
{[%clk 0:04:25.8]} 15... Bc5 {[%clk 0:04:20.5]} 16. Rd2 {[%clk 0:04:19.3]} 16...
Rf8 {[%clk 0:04:16.9]} 17. Nf3 {[%clk 0:04:18.4]} 17... Bg4 {[%clk 0:04:14.2]}
18. Be2 {[%clk 0:04:17.8]} 18... Rae8 {[%clk 0:04:10.3]} 19. Rf1 {[%clk
0:04:04.3]} 19... b6 {[%clk 0:04:03.8]} 20. Bb5 {[%clk 0:03:50.9]} 20... Re7
{[%clk 0:03:54.2]} 21. Nd4 {[%clk 0:03:45.8]} 21... Bd6 {[%clk 0:03:45.7]} 22.
Bc4 {[%clk 0:03:28.9]} 22... Bf4 {[%clk 0:03:43.6]} 23. f3 {[%clk 0:03:21.3]}
23... Bxd2+ {[%clk 0:03:43.3]} 24. Kxd2 {[%clk 0:03:21.2]} 24... Bh5 {[%clk
0:03:37]} 25. Ne6+ {[%clk 0:03:16.1]} 25... Rxe6 {[%clk 0:03:32]} 26. Bxe6
{[%clk 0:03:16]} 26... Bf7 {[%clk 0:03:27.6]} 27. Bxf7 {[%clk 0:03:13]} 27...
Rxf7 {[%clk 0:03:27.5]} 28. Re1 {[%clk 0:03:07.6]} 28... Kc6 {[%clk 0:03:25.1]}
29. Re6+ {[%clk 0:03:06.1]} 29... Kc5 {[%clk 0:03:23.4]} 30. Kc2 {[%clk
0:03:01.8]} 30... a5 {[%clk 0:03:22.4]} 31. a3 {[%clk 0:03:00.7]} 31... b5
{[%clk 0:03:20.2]} 32. b4+ {[%clk 0:02:58.9]} 32... axb4 {[%clk 0:03:16.5]} 33.
axb4+ {[%clk 0:02:58.8]} 33... Kc4 {[%clk 0:03:15.5]} 34. Rc6+ {[%clk 0:02:57]}
34... Kd5 {[%clk 0:03:13.1]} 35. Rc5+ {[%clk 0:02:56.9]} 35... Kd6 {[%clk
0:03:10.4]} 36. Rxb5 {[%clk 0:02:56.8]} 36... g5 {[%clk 0:03:09.1]} 37. Rxg5
{[%clk 0:02:55.4]} 37... h6 {[%clk 0:03:08.2]} 38. Rg6+ {[%clk 0:02:54.4]} 38...
Ke7 {[%clk 0:03:05.9]} 39. Rxh6 {[%clk 0:02:53.9]} 39... Rf6 {[%clk 0:03:04.8]}
40. Rxf6 {[%clk 0:02:52.9]} 40... Kxf6 {[%clk 0:03:04.2]} 41. b5 {[%clk
0:02:52.6]} 1-0

[Event "Live Chess"]
[Site "Chess.com"]
[Date "2023.05.21"]
[Round "-"]
[White "GEMdzq"]
[Black "xx_blindpuffin_xx"]
[Result "1-0"]
[WhiteElo "2287"]
[BlackElo "2181"]
[TimeControl "300"]
[EndTime "20:02:42 PDT"]
[Termination "GEMdzq won - game abandoned"]

1. e4 {[%clk 0:04:58.3]} 1... c6 {[%clk 0:04:52.3]} 2. d4 {[%clk 0:04:56.8]}
2... d5 {[%clk 0:04:51.1]} 3. e5 {[%clk 0:04:56.5]} 3... Bf5 {[%clk 0:04:49]} 4.
h4 {[%clk 0:04:56.1]} 4... Bd7 {[%clk 0:04:42.2]} 5. Nf3 {[%clk 0:04:40.8]} 5...
e6 {[%clk 0:04:40.6]} 6. c4 {[%clk 0:04:38]} 6... Ne7 {[%clk 0:04:33.8]} 7. Nc3
{[%clk 0:04:29.9]} 7... dxc4 {[%clk 0:04:24.6]} 8. Bxc4 {[%clk 0:04:29.8]} 8...
Nd5 {[%clk 0:04:23.9]} 9. Nxd5 {[%clk 0:04:22.6]} 9... exd5 {[%clk 0:04:23.8]}
10. Bd3 {[%clk 0:04:21.5]} 10... Bb4+ {[%clk 0:04:17]} 11. Bd2 {[%clk
0:04:18.9]} 11... Qb6 {[%clk 0:04:14]} 12. O-O {[%clk 0:04:13.7]} 12... Bg4
{[%clk 0:04:07.2]} 13. Be3 {[%clk 0:04:00.8]} 13... Nd7 {[%clk 0:04:01.2]} 14.
Bg5 {[%clk 0:03:56.8]} 14... h6 {[%clk 0:03:51.4]} 15. Be3 {[%clk 0:03:44.1]}
15... O-O {[%clk 0:03:36.5]} 16. Rc1 {[%clk 0:03:14.3]} 16... f6 {[%clk
0:03:29.3]} 17. Bb1 {[%clk 0:03:01.3]} 17... fxe5 {[%clk 0:03:19.2]} 18. dxe5
{[%clk 0:03:01.2]} 18... Nxe5 {[%clk 0:03:13.1]} 19. Bxb6 {[%clk 0:02:55.9]}
19... Nxf3+ {[%clk 0:03:11.1]} 20. gxf3 {[%clk 0:02:53]} 20... Bxf3 {[%clk
0:03:11]} 21. Qd3 {[%clk 0:02:28.6]} 21... Be4 {[%clk 0:03:08.1]} 22. Qd4 {[%clk
0:02:27.2]} 22... axb6 {[%clk 0:03:05.1]} 23. Bxe4 {[%clk 0:02:25]} 23... dxe4
{[%clk 0:03:01.4]} 24. Qxb4 {[%clk 0:02:23.6]} 1-0

[Event "Live Chess"]
[Site "Chess.com"]
[Date "2023.05.21"]
[Round "-"]
[White "raminguy"]
[Black "ViktorTheCoolBoy"]
[Result "0-1"]
[WhiteElo "1954"]
[BlackElo "2499"]
[TimeControl "300"]
[EndTime "20:02:54 PDT"]
[Termination "ViktorTheCoolBoy won by checkmate"]

1. d4 {[%clk 0:04:57.9]} 1... Nf6 {[%clk 0:04:58.5]} 2. Nc3 {[%clk 0:04:57]}
2... e6 {[%clk 0:04:56.5]} 3. e4 {[%clk 0:04:55.6]} 3... d5 {[%clk 0:04:55.3]}
4. Bg5 {[%clk 0:04:53.8]} 4... Bb4 {[%clk 0:04:53.2]} 5. e5 {[%clk 0:04:50.1]}
5... h6 {[%clk 0:04:51.8]} 6. Bd2 {[%clk 0:04:44.7]} 6... Bxc3 {[%clk
0:04:50.2]} 7. Bxc3 {[%clk 0:04:41]} 7... Ne4 {[%clk 0:04:48.9]} 8. Bd3 {[%clk
0:04:39.6]} 8... c5 {[%clk 0:04:45.8]} 9. Bxe4 {[%clk 0:04:37.5]} 9... dxe4
{[%clk 0:04:44.8]} 10. Ne2 {[%clk 0:04:34.5]} 10... Nc6 {[%clk 0:04:41.4]} 11.
O-O {[%clk 0:04:31.4]} 11... cxd4 {[%clk 0:04:39.6]} 12. Bxd4 {[%clk 0:04:29.3]}
12... O-O {[%clk 0:04:37.5]} 13. Bc3 {[%clk 0:04:26.8]} 13... Qg5 {[%clk
0:04:30.2]} 14. Ng3 {[%clk 0:04:15.6]} 14... Nxe5 {[%clk 0:04:21.7]} 15. Nxe4
{[%clk 0:04:12.5]} 15... Qg6 {[%clk 0:04:20.6]} 16. Bxe5 {[%clk 0:04:09.6]}
16... Qxe4 {[%clk 0:04:18.9]} 17. Bg3 {[%clk 0:04:08.3]} 17... b6 {[%clk
0:04:15.6]} 18. f3 {[%clk 0:04:04.4]} 18... Qc6 {[%clk 0:04:14.1]} 19. c3 {[%clk
0:04:02.6]} 19... Ba6 {[%clk 0:04:12.3]} 20. Re1 {[%clk 0:04:00.7]} 20... Rfd8
{[%clk 0:04:10.6]} 21. Qc2 {[%clk 0:03:49.8]} 21... Bd3 {[%clk 0:04:08.6]} 22.
Qf2 {[%clk 0:03:45.9]} 22... a5 {[%clk 0:04:02.4]} 23. Rad1 {[%clk 0:03:42.5]}
23... b5 {[%clk 0:04:01]} 24. Rd2 {[%clk 0:03:40.2]} 24... Bc4 {[%clk 0:03:59]}
25. b3 {[%clk 0:03:37.6]} 25... Bd5 {[%clk 0:03:56.1]} 26. Qe3 {[%clk
0:03:27.7]} 26... Rdc8 {[%clk 0:03:53.7]} 27. Rc1 {[%clk 0:03:24.1]} 27... a4
{[%clk 0:03:51.9]} 28. c4 {[%clk 0:03:21.7]} 28... axb3 {[%clk 0:03:49.3]} 29.
axb3 {[%clk 0:03:19.2]} 29... bxc4 {[%clk 0:03:38.3]} 30. bxc4 {[%clk
0:03:15.5]} 30... Ra4 {[%clk 0:03:37.5]} 31. Rdc2 {[%clk 0:03:08.8]} 31... Rxc4
{[%clk 0:03:35.1]} 32. Rxc4 {[%clk 0:03:06.9]} 32... Bxc4 {[%clk 0:03:34.3]} 33.
Qd4 {[%clk 0:02:54.4]} 33... Qa6 {[%clk 0:03:27.8]} 34. Bf2 {[%clk 0:02:51.2]}
34... Bd5 {[%clk 0:03:25.6]} 35. Rxc8+ {[%clk 0:02:46.9]} 35... Qxc8 {[%clk
0:03:25.5]} 36. Be1 {[%clk 0:02:39]} 36... Qc1 {[%clk 0:03:23.2]} 37. Qd2 {[%clk
0:02:36.1]} 37... Qb1 {[%clk 0:03:21.8]} 38. Kf2 {[%clk 0:02:34.2]} 38... Kh7
{[%clk 0:03:18.2]} 39. Qd4 {[%clk 0:02:24.8]} 39... Qf5 {[%clk 0:03:08.3]} 40.
Bc3 {[%clk 0:02:21.6]} 40... f6 {[%clk 0:03:06.5]} 41. Bd2 {[%clk 0:02:08.6]}
41... Qc2 {[%clk 0:03:02]} 42. h3 {[%clk 0:02:00.9]} 42... h5 {[%clk 0:02:57.2]}
43. g4 {[%clk 0:01:57.8]} 43... Qg6 {[%clk 0:02:51]} 44. Be3 {[%clk 0:01:40.6]}
44... h4 {[%clk 0:02:44.2]} 45. Bd2 {[%clk 0:01:35.1]} 45... Qc2 {[%clk
0:02:35.5]} 46. Ke3 {[%clk 0:01:30.3]} 46... Qd1 {[%clk 0:02:31.6]} 47. Qd3+
{[%clk 0:01:26.9]} 47... g6 {[%clk 0:02:28]} 48. Qd4 {[%clk 0:01:08.3]} 48...
Qxf3# {[%clk 0:02:25.9]} 0-1

[Event "Live Chess"]
[Site "Chess.com"]
[Date "2023.05.21"]
[Round "-"]
[White "LutherSullivan"]
[Black "Tushinskiy"]
[Result "1-0"]
[WhiteElo "2200"]
[BlackElo "2184"]
[TimeControl "300"]
[EndTime "20:02:59 PDT"]
[Termination "LutherSullivan won by resignation"]

1. e4 {[%clk 0:04:57.3]} 1... e5 {[%clk 0:04:58.9]} 2. Nf3 {[%clk 0:04:55.6]}
2... d6 {[%clk 0:04:58.8]} 3. d4 {[%clk 0:04:53.5]} 3... Bg4 {[%clk 0:04:58]} 4.
c3 {[%clk 0:04:50.8]} 4... Nd7 {[%clk 0:04:56.8]} 5. h3 {[%clk 0:04:48]} 5...
Bh5 {[%clk 0:04:55.7]} 6. Be2 {[%clk 0:04:35.7]} 6... Ngf6 {[%clk 0:04:54.4]} 7.
Nbd2 {[%clk 0:04:33.1]} 7... Be7 {[%clk 0:04:53.4]} 8. Qc2 {[%clk 0:04:22.5]}
8... c6 {[%clk 0:04:51.2]} 9. Nf1 {[%clk 0:04:18.3]} 9... Bg6 {[%clk 0:04:49.3]}
10. Ng3 {[%clk 0:04:16.3]} 10... d5 {[%clk 0:04:48.7]} 11. Nxe5 {[%clk 0:04:12]}
11... Nxe5 {[%clk 0:04:46.3]} 12. dxe5 {[%clk 0:04:11.4]} 12... Nxe4 {[%clk
0:04:45.6]} 13. Nxe4 {[%clk 0:04:08.2]} 13... dxe4 {[%clk 0:04:45.1]} 14. Bf4
{[%clk 0:04:02.6]} 14... O-O {[%clk 0:04:40.7]} 15. Rd1 {[%clk 0:03:59.5]} 15...
Qa5 {[%clk 0:04:39.7]} 16. Qb3 {[%clk 0:03:55.2]} 16... b5 {[%clk 0:04:34.3]}
17. O-O {[%clk 0:03:50.4]} 17... Rad8 {[%clk 0:04:31.5]} 18. e6 {[%clk
0:03:31.1]} 18... f5 {[%clk 0:04:29.1]} 19. Bg5 {[%clk 0:03:25.2]} 19... Qc7
{[%clk 0:04:24.2]} 20. Bxe7 {[%clk 0:03:01.4]} 20... Qxe7 {[%clk 0:04:24.1]} 21.
a4 {[%clk 0:02:54.2]} 21... a6 {[%clk 0:04:21.7]} 22. axb5 {[%clk 0:02:38.2]}
22... axb5 {[%clk 0:04:21.6]} 23. Rd4 {[%clk 0:02:36.3]} 23... Rxd4 {[%clk
0:04:19]} 24. cxd4 {[%clk 0:02:33.7]} 24... Rd8 {[%clk 0:04:18.2]} 25. Rc1
{[%clk 0:02:23.7]} 25... h6 {[%clk 0:04:11.8]} 26. Rxc6 {[%clk 0:02:20.8]} 26...
Rxd4 {[%clk 0:04:08.7]} 27. Qxb5 {[%clk 0:02:03.3]} 27... Kh7 {[%clk 0:04:03.8]}
28. Qe5 {[%clk 0:01:50.4]} 28... Rd2 {[%clk 0:03:49.8]} 29. Rc7 {[%clk
0:01:45.3]} 29... Qf8 {[%clk 0:03:48.6]} 30. e7 {[%clk 0:01:35.8]} 30... Qe8
{[%clk 0:03:44.3]} 31. Bb5 {[%clk 0:01:31]} 31... Rd1+ {[%clk 0:03:42.4]} 32.
Kh2 {[%clk 0:01:29.1]} 1-0